Cogmind - Beta 13 @@@ ROGUE MODE // 2024.08.04 @ 14:37:57 Player: Faunarr Result: Destroyed by KU-U3G(g) with Beamcaster Performance ------------- Evolutions (0) 0 Regions Visited (2) 400 Robots Destroyed (19) 95 Value Destroyed (313) 313 Prototype IDs (0) 0 Alien Tech Used (0) 0 Bonus (0) 0 TOTAL SCORE: 808 Bonus ------- None Cogmind --------- Core Integrity 0/250 Matter 265/300 Energy 99/100 System Corruption 0% Temperature Cool (9) Movement Core (50) Location -10/Mines Parts ------- > --- POWER (1) -------- (None) > --- PROPULSION (2) --- (None) > --- UTILITY (2) ------ (None) > --- WEAPON (2) ------- (None) > --- INVENTORY (5) ---- Compact Wheel High-capacity Matter Pod (200) EM Pulse Gun Small Laser Mining Claw Peak State ------------ > --- POWER ------------ Light Nuclear Core > --- PROPULSION ------- Light Treads Compact Wheel > --- UTILITY ---------- Small Storage Unit Medium Storage Unit > --- WEAPON ----------- Assault Rifle Mining Claw > --- INVENTORY -------- Light Ion Engine Light Treads Compact Wheel High-capacity Matter Pod EM Pulse Gun EM Pulse Gun Small Laser Grenade Launcher [Rating: 9] Favorites ----------- Power Light Nuclear Core Engine Ion Engine Power Core Light Nuclear Core Propulsion Compact Wheel Treads Light Treads Wheel Compact Wheel Utility Small Storage Unit Device Seismic Detector Storage Small Storage Unit Weapon Assault Rifle Energy Gun Small Laser Ballistic Gun Assault Rifle Launcher Grenade Launcher Slashing Weapon Mining Claw Build | -11 -10 -10 ------- Run | Yrd Mat Min Slots Evolved . | . . . Power . | . . . Propulsion . | . . . Utility . | . . . Weapon . | . . . Parts Attached 14 | 7 5 2 Power 2 | 1 1 . Engine 1 | 1 . . Core 1 | . 1 . Reactor . | . . . Propulsion 2 | 2 . . Treads 1 | 1 . . Leg . | . . . Wheel 1 | 1 . . Hover . | . . . Flight . | . . . Utility 3 | 2 1 . Device 1 | 1 . . Storage 2 | 1 1 . Processor . | . . . Hackware . | . . . Protection . | . . . Artifact . | . . . Weapon 7 | 2 3 2 Energy Gun 3 | 2 . 1 Energy Cannon . | . . . Ballistic Gun 1 | . 1 . Ballistic Cannon . | . . . Launcher 2 | . 1 1 Special Weapon . | . . . Impact Weapon . | . . . Slashing Weapon 1 | . 1 . Piercing Weapon . | . . . Special Melee Weapon . | . . . Unidentified Prototypes . | . . . Parts Lost 4 | . 1 3 Power 1 | . . 1 Propulsion 2 | . . 2 Utility 1 | . 1 . Weapon . | . . . Highest Loss Streak 3 | . 1 3 To Critical Strikes . | . . . Average Slot Usage (%) 91 | . 95 85 Engine 5 | . 9 . Core 7 | . 4 11 Treads 13 | . 14 12 Wheel 13 | . 14 11 Device 4 | . 6 . Storage 19 | . 17 24 Energy Gun 11 | . 11 11 Ballistic Gun 12 | . 12 11 Slashing Weapon 2 | . 3 . Naked Turns 51 | . . 51 Heaviest Build 24 | 14 24 24 Greatest Support 20 | 16 20 20 Greatest Overweight (x) 1 | . 1 1 Average Overweight (x) . | . . . Largest Inventory Capacity 10 | 8 10 10 Average Capacity 8 | 7 8 9 Most Carried 8 | 5 8 8 Average Carried 7 | 3 7 7 Final Capacity 10 | 8 10 5 Final Carried 8 | 5 8 5 Class Distribution -------------------- 100% | Mutant Dominant Class ---------------- Mutant | -10/Materials Mutant | -10/Mines Resources | -11 -10 -10 ----------- Run | Yrd Mat Min Matter Collected 630 | 270 350 10 Remotely . | . . . Salvage Created 515 | 97 359 59 Parts 32 | 3 23 6 Haulers Intercepted . | . . . Recyclers Shooed . | . . . Parts Field Recycled . | . . . Retrieved Matter . | . . . Parts Self-Destructed . | . . . Prevented . | . . . Kills | -11 -10 -10 ------- Run | Yrd Mat Min Combat Hostiles Destroyed 14 | . 11 3 Guns 11 | . 11 . AOE 3 | . . 3 Classes Destroyed 5 | 2 3 . Tunneler 3 | 1 . 2 Recycler 1 | 1 . . Mechanic 1 | . 1 . Swarmer 9 | . 6 3 Grunt 5 | . 5 . Best Kill Streak 4 | 1 4 3 Combat Bots Only 3 | . 3 3 Max Kills in Single Turn 2 | 1 2 2 Gunslinging . | . . . Exploded 2 | . . 2 Melee . | . . . Uniques/NPCs Destroyed . | . . . Combat | -11 -10 -10 -------- Run | Yrd Mat Min Hostile Shots Fired 76 | . 59 17 Missed 18 | . 13 5 Damage Taken 792 | . 486 306 Core 265 | . 72 193 Absorbed by Shields . | . . . Core Remaining (%) 100 | 100 . . Volleys Fired 61 | 19 35 7 Largest 2 | 1 2 1 Hottest 60 | 40 60 40 Shots Fired 96 | 19 70 7 Gun 92 | 19 70 3 Cannon . | . . . Launcher 4 | . . 4 Special . | . . . Kinetic 35 | . 35 . Thermal 54 | 19 35 . Explosive 4 | . . 4 Electromagnetic 3 | . . 3 Robot Hit Streak 10 | 4 10 4 Robot Miss Streak 4 | 4 2 1 Penetration Max . | . . . Secondary Targets 1 | . 1 . Max Gunslinging Chain 1 | . 1 . Shots Hit Robots 63 | 11 48 4 Core Hits 28 | 3 18 7 Critical Kills . | . . . Critical Parts Destroyed . | . . . Critical Strikes . | . . . Melee Attacks 1 | . 1 . Impact . | . . . Slashing 1 | . 1 . Piercing . | . . . Sneak Attacks . | . . . Combat Hostiles . | . . . Follow-up Attacks . | . . . Damage Inflicted 985 | 133 591 261 Guns 749 | 133 591 25 Cannons . | . . . Explosions 236 | . . 236 Melee . | . . . Ramming . | . . . Kinetic 298 | . 298 . Thermal 426 | 133 293 . Explosive 236 | . . 236 Electromagnetic 25 | . . 25 Impact . | . . . Slashing . | . . . Piercing . | . . . Highest Corruption . | . . . Average Corruption . | . . . Corruption Purged . | . . . Corruption Blocked . | . . . Overload Shots . | . . . Overflow Damage 23 | . . 23 Projectiles . | . . . Explosions 23 | . . 23 Melee . | . . . Knockbacks . | . . . Impact . | . . . Kinetic . | . . . Secondary . | . . . Self-Inflicted Damage . | . . . Shots . | . . . Rammed . | . . . Targets Rammed . | . . . Kicked . | . . . Crushed . | . . . Highest Temperature 79 | . 79 8 Average Temperature 28 | . 30 4 Received Heat Transfer 195 | . 186 9 Siege Activations . | . . . Robots Corrupted . | . . . Combat Hostiles . | . . . Parts Fried . | . . . Impact Corruptions . | . . . Robots Melted . | . . . Combat Hostiles . | . . . Parts Melted 1 | . 1 . Heat Transferred 975 | 300 675 . Parts Sabotaged . | . . . Parts Stolen . | . . . Parts Stripped . | . . . Power Chain Reactions . | . . . Alert | -11 -10 -10 ------- Run | Yrd Mat Min Peak Influence 328 | 10 328 152 Initial 49 | . 6 49 Average 94 | 2 128 67 Maximum Alert Level 1 | . 1 . Low Security (%) 90 | 100 83 100 Level 1 9 | . 16 . Level 2 . | . . . Level 3 . | . . . Level 4 . | . . . Level 5 . | . . . High Security . | . . . Max Security . | . . . Squads Dispatched 1 | . 1 . Investigation . | . . . Extermination . | . . . Reinforcement 1 | . 1 . Assault . | . . . Garrison . | . . . Intercept . | . . . Searches Triggered . | . . . Construction Impeded . | . . . Haulers Reinforced . | . . . Active Scanning Responses . | . . . Cargo Convoy Interrupts . | . . . Stealth | -11 -10 -10 --------- Run | Yrd Mat Min Distress Signals 2 | . 2 . Communications Jammed . | . . . Distress Signals . | . . . Times Spotted 26 | . 18 8 Peak Tracking Total 4 | . 4 4 Tactical Retreats 2 | . 1 1 Traps | -11 -10 -10 ------- Run | Yrd Mat Min Traps Triggered . | . . . Indirectly . | . . . Trap Hack Attempts . | . . . Triggered . | . . . Disarmed . | . . . Reprogrammed . | . . . Reused . | . . . Traps Extracted . | . . . Installed . | . . . Triggered . | . . . Machines | -11 -10 -10 ---------- Run | Yrd Mat Min Machines Disabled . | . . . Max in Single Turn . | . . . Machines Repaired . | . . . Machines Dismantled . | . . . Machines Sabotaged . | . . . Overloaded Fab Kills . | . . . Hacking | -11 -10 -10 --------- Run | Yrd Mat Min Machines Accessed 1 | . 1 . Terminals 1 | . 1 . Fabricators . | . . . Repair Stations . | . . . Recycling Units . | . . . Scanalyzers . | . . . Garrison Access . | . . . Total Hacks 2 | . 2 . Successful 1 | . 1 . Failed 1 | . 1 . Catastrophic . | . . . Database Lockouts . | . . . Manual 2 | . 2 . Terminals 2 | . 2 . Fabricators . | . . . Repair Stations . | . . . Recycling Units . | . . . Scanalyzers . | . . . Garrison Access . | . . . Terminal Hacks 1 | . 1 . Locate Traps 1 | . 1 . Fabricator Hacks . | . . . Repair Station Hacks . | . . . Recycling Unit Hacks . | . . . Scanalyzer . | . . . Garrison Access Hacks . | . . . Unauthorized Hacks . | . . . Terminals . | . . . Fabricators . | . . . Repair Stations . | . . . Recycling Units . | . . . Scanalyzers . | . . . Garrison Access . | . . . Data Cores Recovered . | . . . Used . | . . . Hacking Detections 1 | . 1 . Full Trace Events . | . . . Feedback Events . | . . . Feedback Blocked . | . . . Robot Schematics Acquired . | . . . Robots Built . | . . . Authchips . | . . . Time . | . . . Total Robot Build Rating . | . . . Part Schematics Acquired . | . . . Parts Built . | . . . Authchips . | . . . Time . | . . . Total Part Build Rating . | . . . Parts Repaired . | . . . Time . | . . . Parts Recycled . | . . . Recycled Matter . | . . . Retrieved Matter . | . . . Retrieved Components . | . . . Parts Scanalyzed . | . . . Part Schematics Acquired . | . . . Parts Damaged . | . . . Bothacking | -11 -10 -10 ------------ Run | Yrd Mat Min Used RIF Installer . | . . . Robots Hacked . | . . . Non-combat . | . . . Combat . | . . . Robot Hacks Applied . | . . . Relay Couplers Released . | . . . Fabnet Peak Effective % . | . . . Robots Rewired . | . . . Allies Hacked . | . . . Hacks Repelled . | . . . Allies | -11 -10 -10 -------- Run | Yrd Mat Min Total Allies 2 | . . 2 Largest Group 2 | . . 2 Highest-Rated Group 42 | . . 42 Highest-Rated Ally 31 | . . 31 Total Orders . | . . . Ally Attacks 1 | . . 1 Total Damage 20 | . . 20 Kills . | . . . Allies Corrupted . | . . . Allies Melted . | . . . Intel | -11 -10 -10 ------- Run | Yrd Mat Min Robot Analysis Total . | . . . Derelict Logs Recovered 1 | . . 1 Drone Launches . | . . . Drone Recoveries . | . . . Exploration | -11 -10 -10 ------------- Run | Yrd Mat Min Turns Passed 1061 | 111 591 359 Spaces Moved 631 | 59 348 224 Core 104 | 1 . 103 Treads 188 | . 67 121 Legs . | . . . Wheels 339 | 58 281 . Hover . | . . . Flight . | . . . Fastest Speed 50 | 50 100 50 Average Speed 131 | 99 123 152 Slowest Speed 240 | 100 240 240 Overloaded Moves . | . . . Propulsion Burnouts . | . . . Robots Hopped . | . . . Cave-ins Triggered . | . . . Exploration Rate (%) 43 | 5 63 63 Regions Visited 2 Branch Regions 1 Pre-discovered Areas . | . . . Known Exits Taken . | . . . Unknown Exits Taken 2 | 1 1 . Scrap Searched . | . . . Spaces Dug 1 | . 1 . Terrain Destroyed 30 | . 1 29 Melee 1 | . 1 . Projectile . | . . . AOE 29 | . . 29 Terrain Rammed . | . . . Walls Destroyed . | . . . Machines Disabled . | . . . Actions | -11 -10 -10 --------- Run | Yrd Mat Min Total 758 | 89 436 233 Wait 42 | . 42 . Move 629 | 58 347 224 Hop . | . . . Pick Up 9 | 5 4 . Fast Attach 8 | 7 1 . Attach . | . . . Detach . | . . . Swap 6 | . 4 2 Drop 2 | . 2 . Fire 61 | 19 35 7 Melee 1 | . 1 . Ram . | . . . Kick . | . . . Crush . | . . . Escape Stasis . | . . . Rewire . | . . . Trap . | . . . Miscellaneous . | . . . Route ------- -11/Scrapyard -10/Materials (discovered 2 exits: [*Mat] / [*Min]) -10/Mines (discovered 1 exit: [*Mat]) History --------- Turn | Location | Event 11 | -11/Scrapyard | Discovered new exit (range 15) 112 | -11/Scrapyard | Entered Materials 297 | -10/Materials | Discovered new exit (range 13) 311 | -10/Materials | Build established: Mutant 629 | -10/Materials | Discovered new exit (range 14) 703 | -10/Materials | Entered Mines 724 | -10/Mines | Discovered new exit (range 13) 974 | -10/Mines | Assembled infested the area 999 | -10/Mines | Received a Rocket Launcher from a helpful Derelict 1011 | -10/Mines | Released all parts (4) 1013 | -10/Mines | Core integrity fell below 50% 1036 | -10/Mines | Core integrity fell below 20% 1041 | -10/Mines | Lost 3 parts (1p2n) 1062 | -10/Mines | Destroyed by KU-U3G(g) with Beamcaster Last Messages --------------- 01011_ Released EM Pulse Gun. 01011_ Released Sml. Storage Unit. 01011_ Released Med. Storage Unit. 01011_ Released Grenade Launcher. 01012_ The unstable cave ceiling collapses. 01020_ K-01 Serf collects debris. 01026_ HV Slug penetrates Wall. 01027_ K-01 Serf collects debris. 01036_ The unstable cave ceiling collapses. 01039_ K-01 Serf collects debris. 01039_ Acquired derelict log, extracted data. Data stored: Mines entrances (x2). 01040_ U-05 Engineer lays Concrete. 01041_ U-05 Engineer builds a Wall. 01043_ The unstable cave ceiling collapses. 01046_ U-05 Engineer builds a Wall. 01051_ S-10 Pest destroyed. 01059_ A pair of derelicts emerge from the shadows: "We're, um, lost. You wouldn't happen to know the way out of here, would you?" Map ----- +----------------------------------------------------+ | ??# # ##?# ??????????????????# ###### #??? | | ??# # # #?# ?????????????????## ##???# #??? | | #### # # #? ?????????????????# #???# #??? | | ##? ????????????????# #???# #??? | | #?? #???????????????# #???# #??? | | ####### #?? #??????????????# ##???# #??? | | ??????# #??# =#?????????????# ##????# #??? | | ??????# #??# %#????????????# ##?????# #??? | | ###???# #??# *#????????????# #??????# #??? | | #??# #??# #????????????# """ #??????# #??? | | ### #??# #????????????# """ #??????# #??? | | #### #????????????# """ ???????? ???? | | #????????????# ??? #???????? ???? | | #????????????#???? ????????? ???? | | #### ###????????????????? ??????????????? | | #??# #???????????????????# ??????????????? | | ## #### ##??????????????????? ??????????????? | | ?## $ ##?????????????????? ??????????????? | | ??## ##????????????????????????????????? | | ???## #### #???????####?????????????????????? | | ????# #??## #??????## ##????????????????????? | | ????# #???## #?????## #????????????????????? | | ????# #????# ##??### ##???????????????????? | | ????# #????## #### ##??????????????????? | | ???? ?????## s #??????????????????? | | ???? """??????## k @ z #??????????????????? | | ???? """???????##### g #?????????????????? | | ???? ??????????????## ## #????????????????? | | ???? ???????????????# ##?# #???????????????? | | ????????????????????## #???# #???????????????? | | ?????????????????????# #????# ##???????????????? | | ?????????????????????# #?????###????????????????? | | ?????????????????????# #????????????????????????? | | ????????????????????? ????????????????????????? | | ????????????????????? ????????????????????????? | | ?????????????????????# ???????????????????????? | | ?????????????????????# ???????????????????????? | | ?????????????????????# ??????????????????????? | | ?????????????????????## ??????????????????????? | | ???????????????????????# ???????????????????????? | | ????????????????????????#????????????????????????? | | ?????????????????????????????????????????????????? | | ?????????????????????????????????????????????????? | | ?????????????????????????????????????????????????? | | | | | | | | | | | | | +----------------------------------------------------+ Best States ------------- Heat Dissipation 25 Energy Generation 14 Energy Capacity 250 Matter Stores 300 Matter Capacity 300 Sight Range 16 Terrain Scan Density 10 Evasion (%) 50 Recoil Reduction 1 Item Schematics ----------------- None Robot Schematics ------------------ None Fabricated ------------ Nothing Alien Tech Used ----------------- None Achievements -------------- None Challenges ------------ None Game ------ Seed ForceDisruptorSheargun Manual? 0 Play Time 00:08:35 Cumulative 33.1 hours Start 2024.08.04 @ 14:31:09 End 2024.08.04 @ 14:37:57 Sessions 1 Manual Loads 0 Difficulty Rogue Special Mode None Game No. 61 Rogue 61 Adventurer 0 Explorer 0 Win Type - Total 0 Types 0/0/0/0/0/0/0/0/0 Lore% 22 Gallery% 36 Achievement% 30 Wizard Run 0 Options --------- Layout 1 ASCII 0 Keyboard 0 Movement Vi Keybinds 0 Fullscreen 2 Font 24/Smallcaps Map View 50x35 Zoom Use 0% Tactical HUD 1 Map Filters NONE Filters NONE Steam 1 RUN: 526fd724-d714-4c6f-b687-44a344536fed